[Event "44th Chess Olympiad Open 2022"]
[Site "Chennai"]
[Date "2022.08.01"]
[Round "4.15"]
[White "Ziska, Helgi Dam"]
[Black "Saric, Ivan"]
[Result "1/2-1/2"]
[WhiteElo "2549"]
[BlackElo "2680"]
[Annotator "TA"]
[PlyCount "110"]
[EventDate "2022.??.??"]
[TimeControl "60"]

{[%evp 12,110,22,10,24,20,18,0,0,0,0,3,23,17,71,56,64,68,72,61,58,52,64,56,58,
58,68,58,60,52,54,41,41,23,33,16,54,-13,23,0,14,4,10,20,23,0,9,0,0,0,12,11,29,
0,0,0,0,0,0,0,5,6,48,6,105,43,100,0,0,0,0,0,0,-1,-1,-6,-5,-8,-5,-4,-6,-11,-11,
-11,-11,-11,0,0,0,0,7,0,8,8,8,8,8,14,19,0,0]} 1. e4 {[%emt 0:00:08]} c5 {
[%emt 0:00:04]} 2. Nf3 {[%emt 0:00:15]} d6 {[%emt 0:00:04]} 3. Bb5+ {[%emt 0:
00:00]} Bd7 {[%emt 0:00:16]} 4. Bxd7+ {[%emt 0:00:40]} Nxd7 {[%emt 0:00:12]} 5.
O-O {[%emt 0:01:00]} Ngf6 {[%emt 0:00:07]} 6. Qe2 {[%emt 0:00:38]} e6 {[%emt 0:
00:00]} 7. c4 {[%emt 0:02:07]} Ne5 $1 {[%emt 0:03:29] is recently more
successful than 7...Be7. B52: Sicilian: Moscow Variation with 3...Bd7.} 8. Rd1
{[%emt 0:09:40]} Be7 {[%emt 0:05:24]} 9. Nc3 {[%emt 0:01:35] [#]} Rc8 $146 {
[%emt 0:02:48]} ({Predecessor:} 9... O-O 10. d4 Nxf3+ 11. Qxf3 cxd4 12. Rxd4
Qb6 13. Rd1 Qc6 14. b3 a6 15. Ba3 Rfe8 {½-½ (30) Hakobyan,A (2554)-Inkiov,V 
(2421) Karlsruhe 2019}) 10. b3 {[%emt 0:03:30]} Qa5 {[%emt 0:01:14]} 11. Bb2 {
[%emt 0:02:44]} Nxf3+ {[%emt 0:04:18]} 12. Qxf3 {[%emt 0:00:29][%cal Ye4e5]} e5
{[%emt 0:00:03]} (12... O-O $11) 13. Qh3 {[%emt 0:08:17]} Qd8 {[%emt 0:03:14]}
14. f4 {[%emt 0:03:04]} Qd7 {[%emt 0:00:13]} 15. Qxd7+ {[%emt 0:04:51]} Nxd7 {
[%emt 0:05:16]} 16. Nd5 {[%emt 0:02:09]} Bd8 {[%emt 0:03:11]} 17. Rf1 {[%emt 0:
00:00] White is more active.} O-O {[%emt 0:01:23]} 18. d3 {[%emt 0:08:53]} Re8
{[%emt 0:04:05]} 19. Rf3 {[%emt 0:03:05]} a6 {[%emt 0:08:46]} 20. Raf1 {
[%emt 0:01:14]} f6 {[%emt 0:00:08]} 21. g4 {[%emt 0:09:24]} exf4 {[%emt 0:00:
00]} 22. Nxf4 {[%emt 0:01:28]} b5 {[%emt 0:01:47]} 23. Bc3 {[%emt 0:07:19]} Ne5
{[%emt 0:06:07]} 24. Rg3 {[%emt 0:00:50]} (24. Bxe5 $14 Rxe5 25. Kg2) 24... Rb8
{[%emt 0:01:36][%cal Yc8b8,Yb8b7,Yb7e7]} 25. h4 {[%emt 0:03:16]} a5 {[%emt 0:
03:50]} 26. Nd5 {[%emt 0:01:59]} bxc4 {[%emt 0:01:31]} 27. bxc4 {[%emt 0:00:08]
} a4 {[%emt 0:00:22]} 28. Rc1 {[%emt 0:05:37]} Nc6 {[%emt 0:00:00]} 29. Kf1 {
[%emt 0:01:58]} Rb7 {[%emt 0:02:15]} 30. Rg2 {[%emt 0:04:37]} a3 {[%emt 0:02:
07]} 31. Ke2 {[%emt 0:02:07]} Be7 {[%emt 0:04:08]} 32. Rgg1 {[%emt 0:02:46]}
Reb8 {[%emt 0:00:24]} 33. g5 {[%emt 0:01:09]} fxg5 {[%emt 0:00:00]} 34. Nxe7+ {
[%emt 0:00:26]} Rxe7 {[%emt 0:01:31]} 35. Rxg5 {[%emt 0:00:06]} Nb4 {[%emt 0:
02:39]} 36. Rb1 {[%emt 0:01:48]} h6 {[%emt 0:08:14]} 37. Rg6 {[%emt 0:02:19]} (
37. Rgg1 $5 {[%cal Rb1b3]}) 37... Rb6 {[%emt 0:02:51] [#]} (37... Rf7 $11) 38.
Kd2 {[%emt 0:01:14]} (38. Rb3 $1 $16 {[%cal Rb3a3]}) 38... Rf7 {[%emt 0:01:04]}
(38... Kh7 $14 39. h5 Rbb7) 39. Ke2 {[%emt 0:02:52]} (39. Bxb4 $16 {Black must
now prevent e5.} Kh7 {[#]} 40. h5 $1 (40. Bxa3 Rxb1 41. Rxd6 Rf2+ 42. Kc3 Rxa2
$14) 40... cxb4 41. e5) 39... Nxd3 {[%emt 0:01:39] The position is equal.} 40.
Rxg7+ {[%emt 0:00:35]} Rxg7 {[%emt 0:00:03]} 41. Rxb6 $11 {[%emt 0:30:07]
Endgame KRB-KRN} Rg3 {[%emt 0:31:28] Threatens to win with ...Nc1+.} 42. Rxd6 {
[%emt 0:01:18]} Nc1+ {[%emt 0:00:57] Discovered Attack, Double Attack} 43. Kd2
{[%emt 0:00:00]} Nxa2 {[%emt 0:00:00]} 44. Be5 {[%emt 0:00:00]} Rg2+ {[%emt 0:
00:00]} 45. Ke3 {[%emt 0:00:00]} Nb4 {[%emt 0:00:00]} 46. Rxh6 {[%emt 0:00:00]}
a2 {[%emt 0:00:00]} 47. Rh8+ {[%emt 0:00:00]} Kf7 {[%emt 0:00:00] Black has
compensation.} 48. Ra8 {[%emt 0:00:00]} Rg1 {[%emt 0:00:00]} 49. Kf3 {[%emt 0:
00:00]} Rf1+ {[%emt 0:00:00]} 50. Kg4 {[%emt 0:00:00]} Nd3 {[%emt 0:00:00]} 51.
Bh8 {[%emt 0:00:00]} Nb4 {[%emt 0:00:00]} 52. h5 {[%emt 0:00:00]} Rg1+ {
[%emt 0:00:00]} 53. Kf5 {[%emt 0:00:00] aiming for Ra7+.} Rf1+ {[%emt 0:00:00]}
54. Kg5 {[%emt 0:00:00] Ra7+ is the strong threat.} Rg1+ $1 {[%emt 0:00:00]}
55. Kf5 {[%emt 0:00:00] Hoping for Ra7+.} Rf1+ {[%emt 0:00:00] Weighted Error
Value: White=0.13 (very precise) /Black=0.12 (very precise)} 1/2-1/2

[Event "44th Chess Olympiad Open 2022"]
[Site "Chennai"]
[Date "2022.08.01"]
[Round "4.15"]
[White "Rodgaard, John"]
[Black "Kozul, Zdenko"]
[Result "0-1"]
[WhiteElo "2324"]
[BlackElo "2602"]
[Annotator "TA"]
[PlyCount "100"]
[EventDate "2022.??.??"]
[TimeControl "60"]

{[%evp 19,100,17,29,9,10,0,8,0,0,12,1,8,12,0,0,0,15,0,0,-12,-12,-25,-31,-22,
-19,-60,-46,-50,-56,-77,-80,-83,-43,-49,-53,-53,-49,-47,-47,-53,-49,-49,-39,
-38,-45,-56,-15,-160,-159,-124,-109,-118,-108,-883,-883,-827,-897,-884,-820,
-713,-573,-1320,-1357,-1318,-1279,-1037,-987,-1351,-1079,-2250,-2290,-2216,
-1690,-29980,-29981,-29982,-29983,-29988,-29989,-29989,-29990,-29990,-29991]} 
1. c4 {[%emt 0:00:10]} g6 {[%emt 0:00:42]} 2. d4 {[%emt 0:01:53]} Bg7 {[%emt 0:
00:00]} 3. e4 {[%emt 0:01:24]} d6 {[%emt 0:00:50]} 4. Nc3 {[%emt 0:01:38]} Nf6
{[%emt 0:01:37]} 5. Nf3 {[%emt 0:01:05]} O-O {[%emt 0:00:10]} 6. Be2 {[%emt 0:
00:00]} e5 {[%emt 0:00:15]} 7. O-O {[%emt 0:01:14]} Na6 {[%emt 0:03:00]} 8. Be3
{[%emt 0:28:46]} c6 {[%emt 0:00:49]} 9. dxe5 {[%emt 0:21:07]} dxe5 {[%emt 0:00:
00]} 10. Qxd8 {[%emt 0:04:38]} Rxd8 {[%emt 0:00:10]} 11. Rad1 {[%emt 0:00:47]
E94: King's Indian: Classical: 6 Be2 e5 7 0-0: Various Black 7th moves.} Re8 {
[%emt 0:00:27]} 12. Ne1 {[%emt 0:09:55] [#]} Nd7 $146 {[%emt 0:16:31]} ({
Predecessor:} 12... Bf8 13. Nc2 Nc5 14. f3 a5 15. Rfe1 a4 16. Rb1 Nh5 17. b4
axb3 18. axb3 Be6 {0-1 (30) Brezovar,M (2195)-Tratar,M (2420) Bled 1998}) 13.
Nd3 {[%emt 0:03:25] The position is equal.} Nf8 {[%emt 0:00:33]} 14. Rd2 {
[%emt 0:05:57]} Ne6 {[%emt 0:07:21]} 15. Bg4 {[%emt 0:00:49]} h5 {[%emt 0:00:
00]} 16. Bxe6 {[%emt 0:00:09]} Bxe6 {[%emt 0:00:07]} 17. b3 {[%emt 0:02:11]} f5
{[%emt 0:08:05]} 18. f3 {[%emt 0:01:06]} f4 {[%emt 0:00:53]} 19. Bf2 {[%emt 0:
00:00]} g5 {[%emt 0:00:12][%cal Yg6g5,Yg5g4]} 20. Nc5 {[%emt 0:03:48]} Nxc5 {
[%emt 0:03:24]} 21. Bxc5 {[%emt 0:00:03]} g4 {[%emt 0:01:23]} 22. Rfd1 {
[%emt 0:03:47]} Bf6 {[%emt 0:05:12]} 23. Ne2 {[%emt 0:00:53][%cal Yc3e2,Ye2c1,
Yc1d3]} Kf7 {[%emt 0:01:16]} 24. Kh1 {[%emt 0:00:48]} Rg8 {[%emt 0:00:00]} 25.
Nc1 {[%emt 0:03:02]} gxf3 {[%emt 0:02:38]} 26. gxf3 {[%emt 0:00:08]} Bh3 {
[%emt 0:00:05]} 27. Nd3 {[%emt 0:01:41]} b6 {[%emt 0:08:19]} 28. Bd6 {[%emt 0:
00:27]} Rg5 {[%emt 0:06:00] [#] Threatens to win with ...Rag8.} (28... Ke6 {
keeps more tension.} 29. c5 Rad8 30. Rg1 Rxg1+ 31. Kxg1 Rg8+) 29. Rg1 $1 {
[%emt 0:00:17]} Rxg1+ {[%emt 0:00:14]} 30. Kxg1 {[%emt 0:00:02]} Ke6 {[%emt 0:
00:00]} 31. c5 $1 {[%emt 0:00:39][%cal Yc5b6]} Rg8+ {[%emt 0:00:37]} 32. Kh1 {
[%emt 0:01:29][%cal Yc5b6]} Rg7 {[%emt 0:07:58]} 33. b4 {[%emt 0:00:20]} (33.
Bf8 $11 Rd7 34. Kg1) 33... Bf1 $17 {[%emt 0:05:56]} 34. Ne1 {[%emt 0:00:42]} b5
{[%emt 0:02:47]} 35. Nd3 {[%emt 0:01:30]} h4 {[%emt 0:00:57][%cal Yh5h4,Yh4h3]
[#] Hoping for ...h3.} 36. Ne1 $2 {[%emt 0:00:33] White does not recover from
this.} (36. h3 $17) 36... h3 $19 {[%emt 0:00:16] aiming for ...Bh4.} 37. Rf2 {
[%emt 0:00:20]} Bc4 {[%emt 0:00:08] White must now prevent ...Bh4.} 38. Rd2 {
[%emt 0:00:27]} Bh4 {[%emt 0:01:31]} 39. Nd3 {[%emt 0:00:04]} Rg2 {[%emt 0:02:
05]} 40. Nxf4+ {[%emt 0:01:39]} exf4 {[%emt 0:00:00]} 41. Rxg2 {[%emt 0:30:07]}
hxg2+ {[%emt 0:30:05]} 42. Kxg2 {[%emt 0:00:00]} Bxa2 {[%emt 0:00:28] ...Be1
is the strong threat.} 43. Bxf4 {[%emt 0:00:00]} Be1 {[%emt 0:00:08]} 44. Bd6 {
[%emt 0:00:45]} Bxb4 {[%emt 0:00:24]} 45. f4 {[%emt 0:00:04]} a5 {[%emt 0:00:
29] ( -> ...Bc3)} 46. Kf3 {[%emt 0:00:23]} Bc3 {[%emt 0:00:22] Black mates.}
47. Kg4 {[%emt 0:00:18]} b4 {[%emt 0:00:17][%cal Yb5b4,Yb4b3,Yb3b2]} 48. Kg5 {
[%emt 0:00:13]} b3 {[%emt 0:00:24]} 49. f5+ {[%emt 0:00:03]} Kf7 {[%emt 0:00:
15]} 50. e5 {[%emt 0:00:03]} b2 {[%emt 0:00:00] Weighted Error Value: White=0.
74/Black=0.16 (very precise)} 0-1

[Event "44th Chess Olympiad Open 2022"]
[Site "Chennai"]
[Date "2022.08.01"]
[Round "4.16"]
[White "Hracek, Zbynek"]
[Black "Risteski, Emil"]
[Result "1-0"]
[WhiteElo "2555"]
[BlackElo "2405"]
[Annotator "TA"]
[PlyCount "111"]
[EventDate "2022.??.??"]
[TimeControl "60"]

{[%evp 9,111,26,27,22,39,33,32,33,43,29,50,45,51,36,68,57,57,56,67,60,66,35,39,
41,39,42,35,51,45,36,36,40,42,27,21,33,66,59,63,59,79,76,77,89,89,87,80,70,79,
83,89,87,81,79,81,81,89,83,94,84,79,87,84,68,69,43,122,103,88,88,157,150,244,
243,250,249,250,248,205,0,0,0,250,250,250,226,239,194,1702,1687,1663,1370,2206,
2052,3304,2560,29944,5106,29968,29969,29969,29970,2118,1469]} 1. d4 {[%emt 0:
00:00]} Nf6 {[%emt 0:00:33]} 2. c4 {[%emt 0:00:08]} g6 {[%emt 0:00:04]} 3. g3 {
[%emt 0:00:07]} Bg7 {[%emt 0:00:22]} 4. Bg2 {[%emt 0:00:07]} c5 {[%emt 0:01:40]
} 5. dxc5 {[%emt 0:04:05]} Qa5+ {[%emt 0:09:55]} 6. Nc3 {[%emt 0:00:10] E60:
King's Indian: Unusual lines and Fianchetto Variation without Nc3.} Qxc5 {
[%emt 0:00:32]} 7. Qa4 {[%emt 0:02:51] 7.Bd2 deserves study.} O-O {[%emt 0:00:
00]} 8. Be3 {[%emt 0:04:07] White is slightly better.} Qf5 {[%emt 0:01:40]} 9.
Nf3 {[%emt 0:03:41] [#]} d6 $146 {[%emt 0:07:42]} ({Predecessor:} 9... Nc6 10.
O-O d6 11. Nd4 Qh5 12. Nxc6 bxc6 13. Bxc6 Ng4 14. h4 Nxe3 15. Bxa8 Nxf1 16.
Rxf1 Bxc3 17. bxc3 Qxe2 18. Qxa7 {½-½ (27) Santos Latasa,J (2552)-Abdumalik,
Z (2484) Llucmajor 2018}) 10. Nd4 {[%emt 0:05:29]} Qd7 {[%emt 0:05:08]} 11. h3
{[%emt 0:06:44]} a6 {[%emt 0:06:29][%cal Yb7b5]} 12. Qxd7 {[%emt 0:05:32]}
Nbxd7 {[%emt 0:01:29]} 13. Rc1 {[%emt 0:01:04]} Rb8 {[%emt 0:01:09]} 14. O-O {
[%emt 0:07:43]} Ne5 {[%emt 0:05:02]} 15. Nd5 {[%emt 0:09:15]} Nxd5 {[%emt 0:00:
00]} 16. cxd5 {[%emt 0:00:34]} Nd7 {[%emt 0:00:09]} 17. Rc7 {[%emt 0:08:04]}
Re8 {[%emt 0:00:27]} 18. Rfc1 {[%emt 0:11:08]} Nb6 {[%emt 0:04:36]} 19. b3 {
[%emt 0:10:07][%cal Yd4f5]} Na8 {[%emt 0:01:45]} 20. R7c4 {[%emt 0:02:27]} Bd7
{[%emt 0:01:29]} 21. a4 {[%emt 0:01:11]} Rec8 {[%emt 0:01:25]} 22. a5 {[%emt 0:
00:00]} Rxc4 {[%emt 0:07:14]} 23. bxc4 {[%emt 0:02:33] aiming for Rb1.} Rc8 {
[%emt 0:00:34]} 24. Rb1 {[%emt 0:01:47]} Rc7 {[%emt 0:02:31]} 25. g4 {[%emt 0:
00:00]} Kf8 {[%emt 0:02:57]} 26. Rb4 {[%emt 0:02:13]} Ke8 {[%emt 0:02:09]} 27.
Be4 {[%emt 0:00:34]} Kd8 {[%emt 0:01:39] [#]} 28. Bd3 $1 {[%emt 0:01:40] White
is much more active.} Kc8 {[%emt 0:00:31]} 29. Rb1 {[%emt 0:00:55]} Bxd4 {
[%emt 0:06:11]} 30. Bxd4 {[%emt 0:00:02]} e5 {[%emt 0:00:06] [#]} 31. dxe6 $1 {
[%emt 0:04:21]} Bxe6 {[%emt 0:02:01]} 32. Rb4 {[%emt 0:00:01]} f5 {[%emt 0:00:
00]} 33. f3 {[%emt 0:00:26]} Rf7 {[%emt 0:00:23]} 34. Kg2 {[%emt 0:00:38]} Bd7
{[%emt 0:00:33]} 35. c5 {[%emt 0:01:18]} d5 {[%emt 0:01:29]} 36. e3 {[%emt 0:
00:00][%cal Ye2e3,Ye3d4]} Nc7 {[%emt 0:00:29]} 37. Rb6 {[%emt 0:00:21]} Bc6 {
[%emt 0:04:59]} (37... f4 $14) 38. gxf5 {[%emt 0:00:20]} gxf5 {[%emt 0:00:00]}
39. f4 {[%emt 0:00:25]} Nb5 {[%emt 0:01:17]} (39... Kd7 $142) 40. Kg3 {[%emt 0:
00:38]} Nxd4 {[%emt 0:02:49]} (40... Kc7 $16 {was called for.}) 41. exd4 $16 {
[%emt 0:02:09] Endgame KRB-KRB} Rf6 {[%emt 0:00:16]} 42. Kh4 {[%emt 0:03:34]}
Rh6+ {[%emt 0:00:12]} 43. Kg5 {[%emt 0:00:55]} Rg6+ {[%emt 0:00:25]} 44. Kh4 $2
{[%emt 0:05:14]} (44. Kh5 $18 Rf6 45. Rb2 (45. Kg5 Rg6+ 46. Kh5 Rf6 $16)) 44...
Rh6+ $1 $11 {[%emt 0:00:10]} 45. Kg3 {[%emt 0:00:00]} ({Resist} 45. Kg5 $6 Rg6+
46. Kh5 Rf6 $16) 45... Rg6+ $2 {[%emt 0:00:31]} (45... Rf6 $1 $11) 46. Kf2 $18
{[%emt 0:01:05]} Rf6 {[%emt 0:00:37]} 47. Rb1 {[%emt 0:00:19]} Bd7 {[%emt 0:00:
54]} 48. Rg1 {[%emt 0:00:37]} Rg6 $2 {[%emt 0:00:00]} (48... Kc7 49. Rg7 h6)
49. Rxg6 {[%emt 0:03:45]} hxg6 {[%emt 0:01:51] KB-KB} 50. Kg3 {[%emt 0:00:04]
Black must now prevent Kh4.} Kd8 {[%emt 0:00:03]} 51. Kh4 {[%emt 0:00:05]} Ke7
{[%emt 0:00:02]} 52. Kg5 {[%emt 0:00:07]} Kf7 {[%emt 0:00:01]} 53. h4 {[%emt 0:
01:00]} Kg7 {[%emt 0:00:06]} 54. Be2 {[%emt 0:00:00]} Be8 {[%emt 0:00:28]} 55.
h5 {[%emt 0:00:17]} gxh5 {[%emt 0:00:08]} 56. Bxh5 {[%emt 0:00:03] Weighted
Error Value: White=0.08 (flawless) /Black=0.48} 1-0

[Event "44th Chess Olympiad Open 2022"]
[Site "Chennai"]
[Date "2022.08.01"]
[Round "4.16"]
[White "Zwardon, Vojtech"]
[Black "Veljanoski, Andrej"]
[Result "1-0"]
[WhiteElo "2503"]
[BlackElo "2162"]
[Annotator "TA"]
[PlyCount "77"]
[EventDate "2022.??.??"]
[TimeControl "60"]

{[%evp 15,77,15,17,9,37,41,30,14,66,57,57,55,101,25,31,19,17,0,0,0,0,0,0,-23,0,
0,36,41,46,15,46,39,322,318,255,185,235,178,189,123,153,157,172,176,168,173,
181,170,239,258,364,156,235,225,204,181,510,302,625,633,899,883,29989,29990]} 
1. c4 {[%emt 0:00:01]} Nf6 {[%emt 0:00:28]} 2. Nc3 {[%emt 0:00:02]} e6 {
[%emt 0:00:27]} 3. e4 {[%emt 0:00:03]} c5 {[%emt 0:00:29]} 4. Nf3 {[%emt 0:00:
00]} Nc6 {[%emt 0:00:32]} 5. d4 {[%emt 0:02:25]} cxd4 {[%emt 0:06:17]} 6. Nxd4
{[%emt 0:03:04]} Bb4 {[%emt 0:03:51]} 7. Nxc6 {[%emt 0:00:43]} bxc6 {[%emt 0:
00:00]} 8. Bd3 {[%emt 0:01:50]} d5 {[%emt 0:12:11]} 9. exd5 {[%emt 0:06:01]
B44: Sicilian: Taimanov: 5 Nb5.} exd5 {[%emt 0:00:32]} (9... Bxc3+ $5 10. bxc3
cxd5 $11) 10. O-O {[%emt 0:00:36]} O-O {[%emt 0:10:07]} 11. Qa4 {[%emt 0:08:25]
[#] White has an edge.} Bd6 $146 {[%emt 0:08:54]} ({Black should try} 11... a5
$11) ({Predecessor:} 11... Qd6 12. cxd5 cxd5 13. Nb5 Bd7 14. a3 Bc5 15. Nxd6
Bxa4 16. Nf5 a5 17. Bf4 Rfe8 {½-½ (34) Schmidt,J (2172)-Hjorth,J (2120) ICCF
email 2013}) 12. Qxc6 $14 {[%emt 0:07:15]} Be6 {[%emt 0:02:22] aiming for ...
Ng4.} 13. cxd5 {[%emt 0:11:08]} Ng4 {[%emt 0:01:38]} (13... Nxd5 $14 {might be
stronger.} 14. Rd1 (14. Nxd5 Bxd5 15. Qa4 Re8 $11) 14... Rc8) 14. h3 {[%emt 0:
00:00]} (14. g3 $1 $16 Ne5 15. Qa4 $1) 14... Ne5 $11 {[%emt 0:00:15][%csl Yc6,
Yd3] [#]} 15. Qa4 {[%emt 0:00:42]} Bxh3 $1 {[%emt 0:01:32]} ({Don't do} 15...
Nxd3 16. dxe6 fxe6 17. Be3 $16) 16. Be2 {[%emt 0:04:58]} Bd7 {[%emt 0:05:14]}
17. Qd4 {[%emt 0:02:10]} Ng6 {[%emt 0:09:10]} 18. g3 {[%emt 0:06:52]} Rc8 {
[%emt 0:09:07]} 19. Ne4 {[%emt 0:02:38] Prevents Bc5.} Be5 {[%emt 0:01:31]} 20.
Qxa7 {[%emt 0:00:21]} Bb8 {[%emt 0:03:26]} 21. Qa6 {[%emt 0:03:23]} f5 {
[%emt 0:00:38]} 22. Bg5 {[%emt 0:01:41]} Qe8 {[%emt 0:01:39]} 23. Nd6 {[%emt 0:
00:00]} Qe5 {[%emt 0:12:54]} (23... Bxd6 $14 24. Qxd6 Qxe2 25. Qxd7 Qh5) 24.
Nxc8 $18 {[%emt 0:01:19]} Bxc8 {[%emt 0:00:05]} 25. Qc4 {[%emt 0:00:00]} f4 {
[%emt 0:00:07]} (25... Ba7 $142 26. Bf4 (26. d6+ Kh8 $14) 26... Nxf4 27. gxf4
Qd6) 26. gxf4 {[%emt 0:00:40]} Qf5 {[%emt 0:00:33][%cal Rb8f4]} 27. Qd3 {
[%emt 0:05:57]} (27. d6+ $1 $18 Be6 28. Qd3 Nxf4 29. Bxf4 Qxf4 30. Qg3) 27...
h6 {[%emt 0:00:59] [#]} 28. Rac1 $1 {[%emt 0:01:31][%cal Yd5d6] Threatens to
win with d6!} Bd7 {[%emt 0:01:35]} (28... hxg5 29. Rxc8) 29. Qxf5 {[%emt 0:04:
10]} Bxf5 {[%emt 0:00:06] [#]} 30. Rfd1 $1 {[%emt 0:01:51][%cal Yd5d6] Hoping
for d6!} hxg5 {[%emt 0:01:12]} 31. fxg5 {[%emt 0:00:33]} Bd7 {[%emt 0:01:52]} (
31... Nf4 $142 32. Bf1 Be5) 32. d6 {[%emt 0:00:31]} Rf5 {[%emt 0:00:37] [#]} (
32... Ba7 $142 33. Rc7 Bxf2+ 34. Kh2 Rd8 35. Bc4+ Kh7) 33. Bc4+ {[%emt 0:00:03]
} (33. Rc7 $1 $18 {is the precise move to win.} Rxg5+ (33... Bxc7 34. dxc7) 34.
Kh2 Bxc7 35. dxc7) 33... Kh7 {[%emt 0:00:57] [#]} (33... Kf8 $16) 34. Rd5 $1 {
[%emt 0:00:04]} Ne5 {[%emt 0:03:12]} 35. f4 {[%emt 0:00:04]} Nf3+ {[%emt 0:00:
47]} (35... Nxc4 {is more resistant.} 36. Rxf5 Bxf5) 36. Kg2 {[%emt 0:01:45]}
Rxf4 $2 {[%emt 0:01:00]} (36... Nh4+ 37. Kg3 Rxd5 38. Bxd5 Nf5+ 39. Kf3 g6) 37.
Kg3 {[%emt 0:00:37]} Rh4 {[%emt 0:00:22]} 38. Kxf3 {[%emt 0:00:30] Black must
now prevent Bd3+.} Bc6 {[%emt 0:00:05]} 39. Bd3+ {[%emt 0:00:01] Weighted
Error Value: White=0.30/Black=0.74} 1-0